[Event "Early-Titled-Tuesday-Blitz-February-27-2024"]
[Site "Chess.com"]
[Date "2024.02.27"]
[Round "10"]
[White "DenLaz"]
[Black "Chopper1905"]
[Result "1-0"]
[WhiteElo "3031"]
[BlackElo "2933"]
[TimeControl "180+1"]
[EndTime "9:55:04 PST"]
[Termination "DenLaz won on time"]

1. d4 {[%clk 0:03:00.9]} 1... Nf6 {[%clk 0:02:53.6]} 2. c4 {[%clk 0:03:01.5]}
2... e6 {[%clk 0:02:53.9]} 3. Nf3 {[%clk 0:03:02.2]} 3... d5 {[%clk 0:02:53.1]}
4. g3 {[%clk 0:03:02.8]} 4... dxc4 {[%clk 0:02:53.1]} 5. Bg2 {[%clk 0:03:03.2]}
5... c5 {[%clk 0:02:53.8]} 6. O-O {[%clk 0:03:01.9]} 6... Nc6 {[%clk 0:02:54.2]}
7. dxc5 {[%clk 0:03:02.4]} 7... Qxd1 {[%clk 0:02:53.8]} 8. Rxd1 {[%clk
0:03:03.1]} 8... Bxc5 {[%clk 0:02:54.4]} 9. Nbd2 {[%clk 0:03:03.8]} 9... c3
{[%clk 0:02:54.9]} 10. bxc3 {[%clk 0:03:04.3]} 10... O-O {[%clk 0:02:55.1]} 11.
Nb3 {[%clk 0:03:04.7]} 11... Be7 {[%clk 0:02:55.1]} 12. c4 {[%clk 0:03:04.7]}
12... Bd7 {[%clk 0:02:53.2]} 13. Be3 {[%clk 0:03:04.2]} 13... Rfc8 {[%clk
0:02:40]} 14. Nc5 {[%clk 0:02:49.7]} 14... Bxc5 {[%clk 0:02:33.7]} 15. Bxc5
{[%clk 0:02:50.6]} 15... Na5 {[%clk 0:02:32.2]} 16. Be7 {[%clk 0:02:33.6]} 16...
Ba4 {[%clk 0:02:25.9]} 17. Rdc1 {[%clk 0:02:00.9]} 17... Nxc4 {[%clk 0:02:10.6]}
18. Rab1 {[%clk 0:01:43.5]} 18... Na5 {[%clk 0:00:42.1]} 19. Ne5 {[%clk
0:01:09.2]} 19... Nd5 {[%clk 0:00:39.9]} 20. Ba3 {[%clk 0:01:09]} 20... f6
{[%clk 0:00:36]} 21. Nd3 {[%clk 0:01:02.8]} 21... Nc4 {[%clk 0:00:29.3]} 22. Bb4
{[%clk 0:00:38.5]} 22... Rc7 {[%clk 0:00:12.8]} 23. Nc5 {[%clk 0:00:21.5]} 23...
Nxb4 {[%clk 0:00:12.3]} 24. Nxe6 {[%clk 0:00:21.8]} 24... Re7 {[%clk 0:00:05.2]}
25. Rxb4 {[%clk 0:00:19.5]} 25... Rxe6 {[%clk 0:00:04.5]} 26. Bd5 {[%clk
0:00:19.1]} 26... Bd7 {[%clk 0:00:01.6]} 27. Rbxc4 {[%clk 0:00:19.1]} 27... Kf8
{[%clk 0:00:02.1]} 28. Bxe6 {[%clk 0:00:17.9]} 28... Bxe6 {[%clk 0:00:03]} 29.
Rc7 {[%clk 0:00:18.6]} 29... Bxa2 {[%clk 0:00:02.6]} 30. Rxb7 {[%clk 0:00:19.1]}
30... a5 {[%clk 0:00:03.1]} 31. Rcc7 {[%clk 0:00:17]} 31... Bd5 {[%clk
0:00:02.1]} 32. Ra7 {[%clk 0:00:17.6]} 32... Re8 {[%clk 0:00:01.4]} 33. Rxa5
{[%clk 0:00:16.7]} 33... Bf7 {[%clk 0:00:01.1]} 34. Raa7 {[%clk 0:00:16.6]}
34... Bg6 {[%clk 0:00:01.3]} 35. e3 {[%clk 0:00:16.5]} 1-0

[Event "Early-Titled-Tuesday-Blitz-February-27-2024"]
[Site "Chess.com"]
[Date "2024.02.27"]
[Round "10"]
[White "IMRosen"]
[Black "Chessbard1972"]
[Result "1/2-1/2"]
[WhiteElo "2667"]
[BlackElo "2459"]
[TimeControl "180+1"]
[EndTime "9:55:04 PST"]
[Termination "Game drawn by repetition"]

1. d4 {[%clk 0:03:00.9]} 1... Nf6 {[%clk 0:02:59]} 2. Bf4 {[%clk 0:02:59.1]}
2... d5 {[%clk 0:02:57.2]} 3. e3 {[%clk 0:02:59.5]} 3... c5 {[%clk 0:02:57.1]}
4. Nf3 {[%clk 0:02:59.9]} 4... Nc6 {[%clk 0:02:57.1]} 5. Nbd2 {[%clk 0:03:00.1]}
5... Qb6 {[%clk 0:02:57.2]} 6. dxc5 {[%clk 0:03:00.1]} 6... Qxb2 {[%clk
0:02:56.3]} 7. Rb1 {[%clk 0:03:00.8]} 7... Qc3 {[%clk 0:02:52.6]} 8. Bb5 {[%clk
0:03:01.3]} 8... Qxc5 {[%clk 0:02:51.7]} 9. c4 {[%clk 0:03:00.8]} 9... e6 {[%clk
0:02:42.9]} 10. O-O {[%clk 0:02:57.6]} 10... a6 {[%clk 0:02:38.3]} 11. Nb3
{[%clk 0:02:43.1]} 11... Qa7 {[%clk 0:02:37.8]} 12. Ba4 {[%clk 0:02:33.8]} 12...
Bd7 {[%clk 0:02:29.1]} 13. Nbd4 {[%clk 0:01:32.1]} 13... Bc5 {[%clk 0:02:19.4]}
14. Nxc6 {[%clk 0:01:09.3]} 14... bxc6 {[%clk 0:02:16.4]} 15. Ne5 {[%clk
0:01:07.5]} 15... Rc8 {[%clk 0:02:09.5]} 16. cxd5 {[%clk 0:00:40.6]} 16... exd5
{[%clk 0:01:59.9]} 17. Nxd7 {[%clk 0:00:28]} 17... Qxd7 {[%clk 0:01:54.9]} 18.
Qc2 {[%clk 0:00:28]} 18... Bd6 {[%clk 0:01:49]} 19. Rfc1 {[%clk 0:00:26.5]}
19... O-O {[%clk 0:01:40.8]} 20. Bxc6 {[%clk 0:00:25.6]} 20... Qc7 {[%clk
0:01:31.1]} 21. Bxd6 {[%clk 0:00:16.6]} 21... Qxd6 {[%clk 0:01:30.5]} 22. Qa4
{[%clk 0:00:15.8]} 22... Ne4 {[%clk 0:01:19.6]} 23. Bb7 {[%clk 0:00:13.9]} 23...
Rxc1+ {[%clk 0:01:16.7]} 24. Rxc1 {[%clk 0:00:13.6]} 24... Nc5 {[%clk
0:01:11.5]} 25. Qc6 {[%clk 0:00:10.2]} 25... Nxb7 {[%clk 0:01:11.1]} 26. Qxb7
{[%clk 0:00:09.8]} 26... g6 {[%clk 0:01:01.3]} 27. h3 {[%clk 0:00:08.4]} 27...
a5 {[%clk 0:00:59.1]} 28. Rd1 {[%clk 0:00:08.7]} 28... Rd8 {[%clk 0:00:56.2]}
29. Rd4 {[%clk 0:00:07.4]} 29... Qc5 {[%clk 0:00:51.1]} 30. Qb2 {[%clk
0:00:06.9]} 30... Rc8 {[%clk 0:00:47.5]} 31. Kh2 {[%clk 0:00:04.8]} 31... Qc7+
{[%clk 0:00:45.8]} 32. g3 {[%clk 0:00:04.9]} 32... Qc5 {[%clk 0:00:45.1]} 33.
Qd2 {[%clk 0:00:04.5]} 33... Qa3 {[%clk 0:00:40.7]} 34. Rxd5 {[%clk 0:00:03.4]}
34... a4 {[%clk 0:00:39.2]} 35. Rd8+ {[%clk 0:00:03.9]} 35... Rxd8 {[%clk
0:00:38.9]} 36. Qxd8+ {[%clk 0:00:04.8]} 36... Kg7 {[%clk 0:00:39.5]} 37. Qd4+
{[%clk 0:00:05.3]} 37... Kg8 {[%clk 0:00:39.8]} 38. Qd2 {[%clk 0:00:05.8]} 38...
h5 {[%clk 0:00:38]} 39. Qd8+ {[%clk 0:00:05.9]} 39... Kh7 {[%clk 0:00:36.7]} 40.
Qd5 {[%clk 0:00:04.9]} 40... Kg8 {[%clk 0:00:34.9]} 41. h4 {[%clk 0:00:05.3]}
41... Qb4 {[%clk 0:00:34]} 42. Kg2 {[%clk 0:00:05.7]} 42... a3 {[%clk
0:00:33.6]} 43. Qd8+ {[%clk 0:00:06]} 43... Kh7 {[%clk 0:00:33.1]} 44. Qd5
{[%clk 0:00:05.7]} 44... Kg8 {[%clk 0:00:33.3]} 45. Qd8+ {[%clk 0:00:03.9]}
45... Kh7 {[%clk 0:00:33]} 46. Qd5 {[%clk 0:00:02.8]} 46... Kg8 {[%clk 0:00:33]}
1/2-1/2

[Event "Early-Titled-Tuesday-Blitz-February-27-2024"]
[Site "Chess.com"]
[Date "2024.02.27"]
[Round "10"]
[White "IlanSchnaider"]
[Black "124chess"]
[Result "0-1"]
[WhiteElo "2732"]
[BlackElo "2573"]
[TimeControl "180+1"]
[EndTime "9:55:05 PST"]
[Termination "124chess won on time"]

1. e4 {[%clk 0:03:00.9]} 1... d5 {[%clk 0:01:57.3]} 2. exd5 {[%clk 0:02:59.6]}
2... Qxd5 {[%clk 0:01:58.2]} 3. Nc3 {[%clk 0:02:59.8]} 3... Qd6 {[%clk
0:01:58.8]} 4. d4 {[%clk 0:02:49.2]} 4... Nf6 {[%clk 0:01:59.3]} 5. Bc4 {[%clk
0:02:45.3]} 5... Bg4 {[%clk 0:01:57.2]} 6. f3 {[%clk 0:02:28.5]} 6... Bh5 {[%clk
0:01:57]} 7. Nge2 {[%clk 0:02:27]} 7... c6 {[%clk 0:01:55.2]} 8. Bf4 {[%clk
0:02:25.9]} 8... Qd8 {[%clk 0:01:55.1]} 9. Qd2 {[%clk 0:02:25.3]} 9... e6 {[%clk
0:01:55.4]} 10. a3 {[%clk 0:02:20.8]} 10... Be7 {[%clk 0:01:54.8]} 11. O-O
{[%clk 0:02:18]} 11... O-O {[%clk 0:01:54.7]} 12. Rad1 {[%clk 0:02:14.9]} 12...
Nbd7 {[%clk 0:01:54.7]} 13. Ng3 {[%clk 0:02:14.1]} 13... Bg6 {[%clk 0:01:54.6]}
14. Nge4 {[%clk 0:02:13.7]} 14... Nb6 {[%clk 0:01:54.7]} 15. Ba2 {[%clk
0:02:09.7]} 15... Nbd5 {[%clk 0:01:55]} 16. Be5 {[%clk 0:02:07.6]} 16... Qb6
{[%clk 0:01:54.7]} 17. Na4 {[%clk 0:01:56.2]} 17... Qd8 {[%clk 0:01:51.7]} 18.
Rfe1 {[%clk 0:01:46.1]} 18... Nxe4 {[%clk 0:01:42.3]} 19. fxe4 {[%clk
0:01:45.2]} 19... Nf6 {[%clk 0:01:43.2]} 20. Nc3 {[%clk 0:01:40.1]} 20... Ng4
{[%clk 0:01:33.7]} 21. Bf4 {[%clk 0:01:35]} 21... e5 {[%clk 0:01:32.6]} 22. Bxe5
{[%clk 0:01:24.2]} 22... Nxe5 {[%clk 0:01:31.6]} 23. dxe5 {[%clk 0:01:24.6]}
23... Qb6+ {[%clk 0:01:18.6]} 24. Kh1 {[%clk 0:01:16.2]} 24... Qxb2 {[%clk
0:01:18.9]} 25. Rb1 {[%clk 0:01:00.1]} 25... Qxa3 {[%clk 0:01:19.2]} 26. Rxb7
{[%clk 0:00:55.5]} 26... Bb4 {[%clk 0:01:19]} 27. Bb3 {[%clk 0:00:28.9]} 27...
Qa5 {[%clk 0:01:18]} 28. Rxb4 {[%clk 0:00:06.6]} 28... Qxb4 {[%clk 0:01:18.9]}
29. Qe3 {[%clk 0:00:06.9]} 29... Rad8 {[%clk 0:01:15.7]} 30. e6 {[%clk
0:00:06.8]} 30... fxe6 {[%clk 0:01:15]} 31. Bxe6+ {[%clk 0:00:07.1]} 31... Kh8
{[%clk 0:01:15.4]} 32. h3 {[%clk 0:00:06.7]} 32... Rfe8 {[%clk 0:01:12.5]} 33.
Bb3 {[%clk 0:00:06.7]} 33... Qd4 {[%clk 0:00:58.3]} 34. Qg3 {[%clk 0:00:05.9]}
34... Bxe4 {[%clk 0:00:55.6]} 35. Nxe4 {[%clk 0:00:06.3]} 35... Rxe4 {[%clk
0:00:56.2]} 36. Rf1 {[%clk 0:00:06]} 36... Rde8 {[%clk 0:00:44.9]} 37. Bf7
{[%clk 0:00:01]} 37... Rf8 {[%clk 0:00:42.7]} 38. Qf3 {[%clk 0:00:01.2]} 38...
h6 {[%clk 0:00:36.7]} 39. Qa3 {[%clk 0:00:01.3]} 39... c5 {[%clk 0:00:30.8]} 0-1

[Event "Early-Titled-Tuesday-Blitz-February-27-2024"]
[Site "Chess.com"]
[Date "2024.02.27"]
[Round "10"]
[White "jraosam"]
[Black "JaackCamel"]
[Result "1-0"]
[WhiteElo "1980"]
[BlackElo "2209"]
[TimeControl "180+1"]
[EndTime "9:55:07 PST"]
[Termination "jraosam won by resignation"]

1. Nf3 {[%clk 0:03:00]} 1... d5 {[%clk 0:02:59.2]} 2. c4 {[%clk 0:02:59.2]} 2...
d4 {[%clk 0:02:58.7]} 3. e3 {[%clk 0:02:58.4]} 3... c5 {[%clk 0:02:58.2]} 4. b4
{[%clk 0:02:56]} 4... e5 {[%clk 0:02:46.4]} 5. Nxe5 {[%clk 0:02:48.1]} 5... Nf6
{[%clk 0:02:40.7]} 6. bxc5 {[%clk 0:02:41.8]} 6... Bxc5 {[%clk 0:02:36.1]} 7.
Nd3 {[%clk 0:02:36.9]} 7... Be7 {[%clk 0:02:24.6]} 8. Bb2 {[%clk 0:02:34.6]}
8... Nc6 {[%clk 0:02:22.8]} 9. Na3 {[%clk 0:02:27.1]} 9... a6 {[%clk 0:02:20.8]}
10. Nc2 {[%clk 0:02:23.7]} 10... dxe3 {[%clk 0:02:15]} 11. dxe3 {[%clk
0:02:00.4]} 11... O-O {[%clk 0:02:14.7]} 12. Ne5 {[%clk 0:01:36.2]} 12... Qa5+
{[%clk 0:02:11.6]} 13. Qd2 {[%clk 0:01:34.8]} 13... Qxd2+ {[%clk 0:02:01.9]} 14.
Kxd2 {[%clk 0:01:33.3]} 14... Rd8+ {[%clk 0:02:01]} 15. Ke1 {[%clk 0:01:29.6]}
15... Nxe5 {[%clk 0:02:00.6]} 16. Bxe5 {[%clk 0:01:27.7]} 16... Bf5 {[%clk
0:01:58.2]} 17. Nd4 {[%clk 0:01:26.4]} 17... Bb4+ {[%clk 0:01:55.9]} 18. Ke2
{[%clk 0:01:22.2]} 18... Be6 {[%clk 0:01:45.6]} 19. Bxf6 {[%clk 0:01:08.7]}
19... gxf6 {[%clk 0:01:44]} 20. Rc1 {[%clk 0:01:06.2]} 20... Rac8 {[%clk
0:01:39.4]} 21. Kf3 {[%clk 0:01:04.7]} 21... Kg7 {[%clk 0:01:33]} 22. Be2 {[%clk
0:00:59.7]} 22... Bc5 {[%clk 0:01:29.6]} 23. Rhd1 {[%clk 0:00:55.4]} 23... h5
{[%clk 0:01:27.2]} 24. h3 {[%clk 0:00:52.7]} 24... f5 {[%clk 0:01:23.4]} 25.
Nxe6+ {[%clk 0:00:42]} 25... fxe6 {[%clk 0:01:22.6]} 26. Kg3 {[%clk 0:00:34.8]}
26... Kf6 {[%clk 0:01:19.1]} 27. Bxh5 {[%clk 0:00:32]} 27... Rg8+ {[%clk
0:01:16.9]} 28. Kh2 {[%clk 0:00:31.5]} 28... e5 {[%clk 0:01:13.8]} 29. Rd7
{[%clk 0:00:26.4]} 29... e4 {[%clk 0:01:10.1]} 30. Rxb7 {[%clk 0:00:20.7]} 30...
Bd6+ {[%clk 0:01:04.2]} 31. g3 {[%clk 0:00:20.3]} 31... Be5 {[%clk 0:01:01.2]}
32. h4 {[%clk 0:00:18.7]} 32... Rcd8 {[%clk 0:00:57.1]} 33. Rf7+ {[%clk
0:00:16.7]} 33... Ke6 {[%clk 0:00:56.9]} 34. Ra7 {[%clk 0:00:16.9]} 34... Rd2
{[%clk 0:00:56.3]} 35. Bf7+ {[%clk 0:00:16.8]} 35... Kf6 {[%clk 0:00:54.9]} 36.
Bxg8 {[%clk 0:00:16.6]} 36... Rxf2+ {[%clk 0:00:55.1]} 37. Kg1 {[%clk
0:00:15.9]} 37... Rf3 {[%clk 0:00:54.1]} 38. Rf7+ {[%clk 0:00:12]} 38... Kg6
{[%clk 0:00:53.7]} 39. Ra7 {[%clk 0:00:08.9]} 39... Rxg3+ {[%clk 0:00:53.7]} 40.
Kf2 {[%clk 0:00:09.3]} 40... Rh3 {[%clk 0:00:50.3]} 41. Rg1+ {[%clk 0:00:07.2]}
41... Kf6 {[%clk 0:00:47.5]} 42. Rf7+ {[%clk 0:00:07.4]} 42... Ke6 {[%clk
0:00:47.9]} 43. Rg6+ {[%clk 0:00:07.6]} 43... Bf6 {[%clk 0:00:46.2]} 44. Rgxf6+
{[%clk 0:00:07.3]} 44... Ke5 {[%clk 0:00:46.5]} 45. Rxf5+ {[%clk 0:00:07.7]}
45... Ke6 {[%clk 0:00:46.3]} 46. R7f6+ {[%clk 0:00:07.8]} 1-0

[Event "Early-Titled-Tuesday-Blitz-February-27-2024"]
[Site "Chess.com"]
[Date "2024.02.27"]
[Round "10"]
[White "Austen48"]
[Black "pfalcon1949"]
[Result "1-0"]
[WhiteElo "2255"]
[BlackElo "1902"]
[TimeControl "180+1"]
[EndTime "9:55:08 PST"]
[Termination "Austen48 won on time"]

1. d4 {[%clk 0:02:47.2]} 1... Nf6 {[%clk 0:02:59]} 2. c4 {[%clk 0:02:47.3]} 2...
c5 {[%clk 0:02:58.7]} 3. d5 {[%clk 0:02:47.1]} 3... b5 {[%clk 0:02:58.6]} 4.
cxb5 {[%clk 0:02:46.7]} 4... a6 {[%clk 0:02:58.8]} 5. bxa6 {[%clk 0:02:47.3]}
5... g6 {[%clk 0:02:57.9]} 6. Nc3 {[%clk 0:02:47.8]} 6... Bg7 {[%clk 0:02:58.2]}
7. Nf3 {[%clk 0:02:46.1]} 7... O-O {[%clk 0:02:57.8]} 8. g3 {[%clk 0:02:40.9]}
8... d6 {[%clk 0:02:54.2]} 9. Bg2 {[%clk 0:02:41]} 9... Nxa6 {[%clk 0:02:54.7]}
10. e4 {[%clk 0:02:35.8]} 10... Nb4 {[%clk 0:02:47]} 11. O-O {[%clk 0:02:33.4]}
11... Ba6 {[%clk 0:02:45.6]} 12. Re1 {[%clk 0:02:30.8]} 12... Nd3 {[%clk
0:02:43.5]} 13. h3 {[%clk 0:02:19.1]} 13... Nxe1 {[%clk 0:02:40.8]} 14. Nxe1
{[%clk 0:02:18.1]} 14... Nd7 {[%clk 0:02:36.3]} 15. f4 {[%clk 0:02:17.8]} 15...
Qb6 {[%clk 0:02:28.2]} 16. Kh2 {[%clk 0:02:17.3]} 16... Rfb8 {[%clk 0:02:22.6]}
17. Qc2 {[%clk 0:02:13.5]} 17... Qb4 {[%clk 0:02:18.4]} 18. Nd3 {[%clk
0:02:10.3]} 18... Bxd3 {[%clk 0:02:17.6]} 19. Qxd3 {[%clk 0:02:09.9]} 19... Qd4
{[%clk 0:02:16]} 20. Qxd4 {[%clk 0:01:58.1]} 20... cxd4 {[%clk 0:02:06.8]} 21.
Nd1 {[%clk 0:01:57.4]} 21... Nc5 {[%clk 0:02:06.4]} 22. e5 {[%clk 0:01:42.5]}
22... Nb3 {[%clk 0:02:03.5]} 23. Rb1 {[%clk 0:01:42.7]} 23... Rxa2 {[%clk
0:01:57]} 24. Be4 {[%clk 0:01:36]} 24... dxe5 {[%clk 0:01:47.9]} 25. f5 {[%clk
0:01:36.3]} 25... Nxc1 {[%clk 0:01:30.1]} 26. Rxc1 {[%clk 0:01:34.8]} 26... Ra7
{[%clk 0:01:21.2]} 27. g4 {[%clk 0:01:30.6]} 27... Bh6 {[%clk 0:01:16.8]} 28.
Rc2 {[%clk 0:01:30.6]} 28... Bf4+ {[%clk 0:01:17.2]} 29. Kg2 {[%clk 0:01:30.3]}
29... gxf5 {[%clk 0:01:11.3]} 30. Bxf5 {[%clk 0:01:25.7]} 30... Kg7 {[%clk
0:01:04.9]} 31. Nf2 {[%clk 0:01:23.6]} 31... Rb3 {[%clk 0:00:58.5]} 32. Nd3
{[%clk 0:01:19.9]} 32... Ra5 {[%clk 0:00:47]} 33. Be4 {[%clk 0:01:11.5]} 33...
e6 {[%clk 0:00:37.3]} 34. dxe6 {[%clk 0:01:09.9]} 34... fxe6 {[%clk 0:00:37.3]}
35. h4 {[%clk 0:01:09]} 35... Kf6 {[%clk 0:00:36.5]} 36. Bxh7 {[%clk 0:01:03.6]}
36... Ra2 {[%clk 0:00:32.7]} 37. g5+ {[%clk 0:01:01.8]} 37... Kg7 {[%clk
0:00:30]} 38. Rc7+ {[%clk 0:01:01.5]} 38... Kh8 {[%clk 0:00:24.2]} 39. Be4
{[%clk 0:00:59.4]} 39... Rxd3 {[%clk 0:00:23]} 40. Bxd3 {[%clk 0:00:58.8]} 40...
Rxb2+ {[%clk 0:00:23.9]} 41. Kf3 {[%clk 0:00:57.8]} 41... Rb3 {[%clk 0:00:22.4]}
42. Ke4 {[%clk 0:00:57.6]} 42... Kg8 {[%clk 0:00:20.8]} 43. Re7 {[%clk
0:00:43.8]} 43... Rb6 {[%clk 0:00:19.7]} 44. Bc4 {[%clk 0:00:42.9]} 44... Kf8
{[%clk 0:00:16]} 45. Rxe6 {[%clk 0:00:42.9]} 45... Rxe6 {[%clk 0:00:15.6]} 46.
Bxe6 {[%clk 0:00:42.6]} 46... Kg7 {[%clk 0:00:16.5]} 47. Bf5 {[%clk 0:00:42.4]}
47... Kh8 {[%clk 0:00:15.6]} 48. Kd5 {[%clk 0:00:42.5]} 48... Kg7 {[%clk
0:00:15.7]} 49. Ke6 {[%clk 0:00:42.6]} 49... Kh8 {[%clk 0:00:14.8]} 50. Kf7
{[%clk 0:00:42.1]} 50... Bg3 {[%clk 0:00:11.6]} 51. g6 {[%clk 0:00:41.6]} 1-0

[Event "Early-Titled-Tuesday-Blitz-February-27-2024"]
[Site "Chess.com"]
[Date "2024.02.27"]
[Round "10"]
[White "Balla_Tamas"]
[Black "Herman-NY"]
[Result "0-1"]
[WhiteElo "2414"]
[BlackElo "2528"]
[TimeControl "180+1"]
[EndTime "9:55:09 PST"]
[Termination "Herman-NY won by resignation"]

1. e4 {[%clk 0:03:00.9]} 1... e5 {[%clk 0:03:00.2]} 2. Nf3 {[%clk 0:02:59.1]}
2... Nc6 {[%clk 0:03:00.8]} 3. d4 {[%clk 0:02:58.5]} 3... exd4 {[%clk
0:03:00.8]} 4. Nxd4 {[%clk 0:02:59.1]} 4... Qf6 {[%clk 0:03:01.4]} 5. Nb3 {[%clk
0:02:48.1]} 5... Qg6 {[%clk 0:02:52.3]} 6. Nc3 {[%clk 0:02:45.8]} 6... Bb4
{[%clk 0:02:51.9]} 7. Bd2 {[%clk 0:02:33.9]} 7... Bxc3 {[%clk 0:02:10.3]} 8.
Bxc3 {[%clk 0:02:34.8]} 8... Qxe4+ {[%clk 0:02:10.5]} 9. Be2 {[%clk 0:02:34.1]}
9... Qg6 {[%clk 0:01:44.3]} 10. O-O {[%clk 0:02:29.7]} 10... Nge7 {[%clk
0:01:42.3]} 11. Bd3 {[%clk 0:02:24.8]} 11... Qh6 {[%clk 0:01:39.5]} 12. Re1
{[%clk 0:02:09]} 12... O-O {[%clk 0:01:35.9]} 13. Qf3 {[%clk 0:01:41.9]} 13...
d6 {[%clk 0:01:19.5]} 14. Rad1 {[%clk 0:01:33.8]} 14... Ng6 {[%clk 0:01:10]} 15.
Re4 {[%clk 0:01:12]} 15... Nce5 {[%clk 0:01:06.6]} 16. Qe2 {[%clk 0:01:06.3]}
16... Nxd3 {[%clk 0:00:49.6]} 17. Qxd3 {[%clk 0:00:57.3]} 17... Bf5 {[%clk
0:00:46.4]} 18. Nd4 {[%clk 0:00:52.3]} 18... Bxe4 {[%clk 0:00:44.7]} 19. Qxe4
{[%clk 0:00:53.2]} 19... Qh5 {[%clk 0:00:36]} 20. f3 {[%clk 0:00:47]} 20... d5
{[%clk 0:00:29.2]} 21. Qd3 {[%clk 0:00:42]} 21... c6 {[%clk 0:00:22]} 22. Nf5
{[%clk 0:00:42]} 22... Nf4 {[%clk 0:00:17.9]} 23. Nxg7 {[%clk 0:00:20.5]} 23...
Qg5 {[%clk 0:00:13.2]} 24. Qf1 {[%clk 0:00:12.2]} 24... f6 {[%clk 0:00:13.7]}
25. h4 {[%clk 0:00:06.8]} 25... Qxg7 {[%clk 0:00:13.2]} 26. Re1 {[%clk
0:00:06.2]} 26... Rae8 {[%clk 0:00:12.7]} 27. Rd1 {[%clk 0:00:05.3]} 27... Re2
{[%clk 0:00:12.4]} 28. Rd4 {[%clk 0:00:05.5]} 28... Rxg2+ {[%clk 0:00:12.3]} 29.
Kh1 {[%clk 0:00:05.6]} 29... Ne2 {[%clk 0:00:09.4]} 30. Rb4 {[%clk 0:00:01.6]}
30... Ng3+ {[%clk 0:00:09.1]} 31. Kxg2 {[%clk 0:00:02]} 31... Nxf1+ {[%clk
0:00:10]} 32. Kxf1 {[%clk 0:00:02.9]} 32... Qf7 {[%clk 0:00:10.5]} 33. Rg4+
{[%clk 0:00:03.8]} 33... Kh8 {[%clk 0:00:10.2]} 34. h5 {[%clk 0:00:04.7]} 34...
c5 {[%clk 0:00:09]} 35. Kg2 {[%clk 0:00:05]} 35... d4 {[%clk 0:00:09.6]} 36. Bd2
{[%clk 0:00:05.7]} 36... Rg8 {[%clk 0:00:08.9]} 37. Kg3 {[%clk 0:00:06.2]} 37...
Rxg4+ {[%clk 0:00:09]} 38. fxg4 {[%clk 0:00:07.1]} 38... Qxa2 {[%clk 0:00:09.2]}
39. Bf4 {[%clk 0:00:07.9]} 39... Kg8 {[%clk 0:00:09.5]} 0-1

[Event "Early-Titled-Tuesday-Blitz-February-27-2024"]
[Site "Chess.com"]
[Date "2024.02.27"]
[Round "10"]
[White "Beca95"]
[Black "mishanick"]
[Result "0-1"]
[WhiteElo "2909"]
[BlackElo "3079"]
[TimeControl "180+1"]
[EndTime "9:55:11 PST"]
[Termination "mishanick won by resignation"]

1. e4 {[%clk 0:03:00.9]} 1... c5 {[%clk 0:03:00.2]} 2. Nf3 {[%clk 0:03:00.6]}
2... e6 {[%clk 0:03:00.9]} 3. d4 {[%clk 0:02:57.8]} 3... cxd4 {[%clk 0:03:00.9]}
4. Nxd4 {[%clk 0:02:58.7]} 4... Nc6 {[%clk 0:03:01.3]} 5. Nc3 {[%clk 0:02:59.1]}
5... Nf6 {[%clk 0:03:01.9]} 6. a3 {[%clk 0:02:59.3]} 6... Qc7 {[%clk 0:02:56.5]}
7. Be3 {[%clk 0:02:56.4]} 7... a6 {[%clk 0:02:56.4]} 8. g4 {[%clk 0:02:45.4]}
8... h6 {[%clk 0:02:48.5]} 9. h4 {[%clk 0:02:44.1]} 9... d5 {[%clk 0:02:16.9]}
10. exd5 {[%clk 0:02:38.2]} 10... exd5 {[%clk 0:02:13.7]} 11. Be2 {[%clk
0:02:36.2]} 11... Be6 {[%clk 0:02:05.3]} 12. f4 {[%clk 0:02:05.7]} 12... O-O-O
{[%clk 0:01:48.1]} 13. f5 {[%clk 0:02:00.9]} 13... Bd7 {[%clk 0:01:46.6]} 14.
Qd2 {[%clk 0:00:51.4]} 14... Nxg4 {[%clk 0:01:24.4]} 15. Bxg4 {[%clk 0:00:50.7]}
15... Qg3+ {[%clk 0:01:24.1]} 16. Qf2 {[%clk 0:00:50.4]} 16... Qxg4 {[%clk
0:01:24.6]} 17. Rg1 {[%clk 0:00:49.7]} 17... Qh5 {[%clk 0:01:24.6]} 18. Nxd5
{[%clk 0:00:49.3]} 18... Nxd4 {[%clk 0:01:13.4]} 19. Bxd4 {[%clk 0:00:25.2]}
19... Qxf5 {[%clk 0:00:43]} 20. Nb6+ {[%clk 0:00:23.3]} 20... Kc7 {[%clk
0:00:43.1]} 21. Qg3+ {[%clk 0:00:23.1]} 21... Bd6 {[%clk 0:00:41.6]} 22. Qc3+
{[%clk 0:00:23.1]} 22... Kb8 {[%clk 0:00:23]} 23. O-O-O {[%clk 0:00:23]} 23...
Bc6 {[%clk 0:00:17.1]} 24. Bxg7 {[%clk 0:00:18.4]} 24... Rhg8 {[%clk 0:00:12]}
25. Kb1 {[%clk 0:00:16.9]} 25... Be4 {[%clk 0:00:07.4]} 26. Bd4 {[%clk
0:00:15.8]} 26... Rxg1 {[%clk 0:00:03.5]} 27. Rxg1 {[%clk 0:00:16.7]} 27... Bc7
{[%clk 0:00:03.8]} 28. Nc4 {[%clk 0:00:15.3]} 28... Bxc2+ {[%clk 0:00:03.1]} 29.
Ka1 {[%clk 0:00:15]} 29... Qd3 {[%clk 0:00:03.4]} 30. Bf6 {[%clk 0:00:11.2]}
30... Qxc3 {[%clk 0:00:03.7]} 31. bxc3 {[%clk 0:00:11.5]} 31... Rc8 {[%clk
0:00:04.2]} 32. Ne5 {[%clk 0:00:11.1]} 32... Bb3 {[%clk 0:00:04.4]} 33. Kb2
{[%clk 0:00:11.5]} 33... Be6 {[%clk 0:00:04.7]} 34. Nd3 {[%clk 0:00:11.5]} 34...
Bd8 {[%clk 0:00:05]} 35. Bxd8 {[%clk 0:00:11.2]} 35... Rxd8 {[%clk 0:00:05.9]}
36. Nf4 {[%clk 0:00:11.3]} 36... Rd2+ {[%clk 0:00:06.4]} 37. Kc1 {[%clk
0:00:11.1]} 37... Ra2 {[%clk 0:00:06.7]} 38. Nxe6 {[%clk 0:00:11]} 38... Ra1+
{[%clk 0:00:06.9]} 0-1